[Event "Titled Tuesday Blitz August 1 Late 2023"]
[White "Celestino, Rafael Teixeira"]
[Black "Yeritsyan, Hayk"]
[WhiteFideId "2108925"]
[BlackFideId "13307320"]
[WhiteElo "2234"]
[BlackElo "2451"]
[Result "0-1"]
[Round "2"]
[TimeControl "180+1"]
[Date "2023.08.01"]
[WhiteClock "0:00:00"]
[BlackClock "0:00:57"]
[Board "168"]

1. b3 {[%clk 0:02:58]}  d5 {[%clk 0:02:59]} 2. Bb2 {[%clk 0:02:59]}  c6 {[%clk 0:03:00]} 3. e3 {[%clk 0:02:59]}  Bf5 {[%clk 0:03:00]} 4. f4 {[%clk 0:02:59]}  e6 {[%clk 0:03:00]} 5. Nf3 {[%clk 0:02:59]}  h6 {[%clk 0:03:00]} 6. Be2 {[%clk 0:02:59]}  Nf6 {[%clk 0:03:01]} 7. O-O {[%clk 0:03:00]}  Be7 {[%clk 0:03:01]} 8. Qe1 {[%clk 0:03:00]}  O-O {[%clk 0:03:02]} 9. d3 {[%clk 0:03:00]}  Bh7 {[%clk 0:03:01]} 10. Nbd2 {[%clk 0:03:00]}  Nfd7 {[%clk 0:03:01]} 11. Qg3 {[%clk 0:02:59]}  Bf6 {[%clk 0:03:01]} 12. Ne5 {[%clk 0:02:59]}  Nxe5 {[%clk 0:03:01]} 13. fxe5 {[%clk 0:03:00]}  Be7 {[%clk 0:03:01]} 14. Bf3 {[%clk 0:02:57]}  Nd7 {[%clk 0:03:01]} 15. e4 {[%clk 0:02:57]}  Rc8 {[%clk 0:03:00]} 16. Rae1 {[%clk 0:02:56]}  Qe8 {[%clk 0:02:57]} 17. c4 {[%clk 0:02:46]}  Nb6 {[%clk 0:02:53]} 18. d4 {[%clk 0:02:41]}  Rd8 {[%clk 0:02:52]} 19. c5 {[%clk 0:02:39]}  Nd7 {[%clk 0:02:52]} 20. exd5 {[%clk 0:02:38]}  cxd5 {[%clk 0:02:51]} 21. Be2 {[%clk 0:02:34]}  Nb8 {[%clk 0:02:46]} 22. Bd3 {[%clk 0:02:32]}  Nc6 {[%clk 0:02:45]} 23. Bxh7+ {[%clk 0:02:31]}  Kxh7 {[%clk 0:02:45]} 24. a3 {[%clk 0:02:31]}  a6 {[%clk 0:02:45]} 25. b4 {[%clk 0:02:31]}  f6 {[%clk 0:02:41]} 26. b5 {[%clk 0:02:25]}  axb5 {[%clk 0:02:41]} 27. Qd3+ {[%clk 0:02:25]}  f5 {[%clk 0:02:40]} 28. Qxb5 {[%clk 0:02:21]}  Qd7 {[%clk 0:02:35]} 29. Nb3 {[%clk 0:02:17]}  Ra8 {[%clk 0:02:29]} 30. Bc3 {[%clk 0:02:17]}  Rxa3 {[%clk 0:02:28]} 31. Rb1 {[%clk 0:02:15]}  Nxe5 {[%clk 0:02:22]} 32. Qb4 {[%clk 0:01:57]}  Ra4 {[%clk 0:02:19]} 33. Qb6 {[%clk 0:01:48]}  Nc4 {[%clk 0:02:15]} 34. c6 {[%clk 0:01:30]}  bxc6 {[%clk 0:02:08]} 35. Nc5 {[%clk 0:01:29]}  Nxb6 {[%clk 0:02:06]} 36. Nxd7 {[%clk 0:01:29]}  Nxd7 {[%clk 0:02:06]} 37. Rb7 {[%clk 0:01:28]}  Rd8 {[%clk 0:02:04]} 38. Re1 {[%clk 0:01:29]}  Bf6 {[%clk 0:01:33]} 39. Rxe6 {[%clk 0:01:25]}  Nf8 {[%clk 0:01:33]} 40. Rxf6 {[%clk 0:01:23]}  Rc4 {[%clk 0:01:28]} 41. Bd2 {[%clk 0:01:16]}  Rxd4 {[%clk 0:01:26]} 42. Bxh6 {[%clk 0:01:16]}  Rd7 {[%clk 0:01:21]} 43. Rxd7 {[%clk 0:00:37]}  Nxd7 {[%clk 0:01:18]} 44. Rxc6 {[%clk 0:00:35]}  Ne5 {[%clk 0:01:06]} 45. Re6 {[%clk 0:00:00]}  Ng4 {[%clk 0:00:57]} 0-1


[Site "https://www.chess.com"]

[Event "Titled Tuesday Blitz August 1 Late 2023"]
[White "Rodriguez, Santiago"]
[Black "rikchessmx"]
[WhiteFideId "3000591"]
[WhiteElo "2444"]
[BlackElo "2218"]
[Result "1-0"]
[Round "2"]
[TimeControl "180+1"]
[Date "2023.08.01"]
[WhiteClock "0:02:07"]
[BlackClock "0:01:17"]
[Board "172"]

1. d4 {[%clk 0:03:00]}  Nf6 {[%clk 0:02:53]} 2. Bg5 {[%clk 0:02:59]}  Ne4 {[%clk 0:02:51]} 3. Bf4 {[%clk 0:02:58]}  c5 {[%clk 0:02:51]} 4. f3 {[%clk 0:02:58]}  Nf6 {[%clk 0:02:51]} 5. dxc5 {[%clk 0:02:59]}  Qa5+ {[%clk 0:02:50]} 6. Qd2 {[%clk 0:02:56]}  Qxc5 {[%clk 0:02:50]} 7. Nc3 {[%clk 0:02:56]}  Nc6 {[%clk 0:02:50]} 8. O-O-O {[%clk 0:02:55]}  d6 {[%clk 0:02:50]} 9. e4 {[%clk 0:02:54]}  g6 {[%clk 0:02:45]} 10. Nd5 {[%clk 0:02:54]}  Nxd5 {[%clk 0:02:42]} 11. exd5 {[%clk 0:02:54]}  Ne5 {[%clk 0:02:37]} 12. Be3 {[%clk 0:02:51]}  Qc7 {[%clk 0:02:34]} 13. f4 {[%clk 0:02:50]}  Nc4 {[%clk 0:02:22]} 14. Qc3 {[%clk 0:02:49]}  b6 {[%clk 0:02:19]} 15. Qxc4 {[%clk 0:02:43]}  Qxc4 {[%clk 0:02:16]} 16. Bxc4 {[%clk 0:02:44]}  Bg7 {[%clk 0:02:15]} 17. Bd4 {[%clk 0:02:44]}  O-O {[%clk 0:02:12]} 18. Bxg7 {[%clk 0:02:43]}  Kxg7 {[%clk 0:02:13]} 19. Nf3 {[%clk 0:02:43]}  Bg4 {[%clk 0:02:13]} 20. Be2 {[%clk 0:02:42]}  Rac8 {[%clk 0:02:11]} 21. h3 {[%clk 0:02:41]}  Bd7 {[%clk 0:02:10]} 22. Rhe1 {[%clk 0:02:39]}  Rc5 {[%clk 0:02:09]} 23. Kb1 {[%clk 0:02:32]}  Rfc8 {[%clk 0:01:57]} 24. Ba6 {[%clk 0:02:30]}  R8c7 {[%clk 0:01:55]} 25. Rxe7 {[%clk 0:02:29]}  Kf6 {[%clk 0:01:49]} 26. Re2 {[%clk 0:02:27]}  b5 {[%clk 0:01:49]} 27. g4 {[%clk 0:02:19]}  h6 {[%clk 0:01:47]} 28. g5+ {[%clk 0:02:18]}  hxg5 {[%clk 0:01:45]} 29. fxg5+ {[%clk 0:02:19]}  Kf5 {[%clk 0:01:45]} 30. a4 {[%clk 0:02:18]}  bxa4 {[%clk 0:01:43]} 31. Bd3+ {[%clk 0:02:16]}  Kf4 {[%clk 0:01:43]} 32. Nd2 {[%clk 0:02:11]}  Kxg5 {[%clk 0:01:35]} 33. Ne4+ {[%clk 0:02:09]}  Kh6 {[%clk 0:01:30]} 34. Nxc5 {[%clk 0:02:10]}  Rxc5 {[%clk 0:01:30]} 35. Re7 {[%clk 0:02:09]}  Bf5 {[%clk 0:01:23]} 36. Bxf5 {[%clk 0:02:07]}  gxf5 {[%clk 0:01:23]} 37. Rxf7 {[%clk 0:02:07]}  Kg6 {[%clk 0:01:23]} 38. Rxa7 {[%clk 0:02:07]}  Rc4 {[%clk 0:01:22]} 39. Rd7 {[%clk 0:02:05]}  f4 {[%clk 0:01:21]} 40. Rxd6+ {[%clk 0:02:06]}  Kf5 {[%clk 0:01:21]} 41. Rc6 {[%clk 0:02:06]}  Re4 {[%clk 0:01:17]} 42. d6 {[%clk 0:02:07]} 1-0


[Site "https://www.chess.com"]

[Event "Titled Tuesday Blitz August 1 Late 2023"]
[White "Novikov, Evgenij"]
[Black "BeautiFullMindChess"]
[WhiteFideId "4125380"]
[WhiteElo "2441"]
[BlackElo "2205"]
[Result "1/2-1/2"]
[Round "2"]
[TimeControl "180+1"]
[Date "2023.08.01"]
[WhiteClock "0:00:28"]
[BlackClock "0:00:33"]
[Board "174"]

1. e4 {[%clk 0:03:00]}  c5 {[%clk 0:02:57]} 2. Nc3 {[%clk 0:02:59]}  Nc6 {[%clk 0:02:55]} 3. Bb5 {[%clk 0:02:58]}  Nd4 {[%clk 0:02:55]} 4. Nf3 {[%clk 0:02:56]}  a6 {[%clk 0:02:54]} 5. Bd3 {[%clk 0:02:54]}  g6 {[%clk 0:02:54]} 6. Nxd4 {[%clk 0:02:53]}  cxd4 {[%clk 0:02:54]} 7. Ne2 {[%clk 0:02:54]}  e5 {[%clk 0:02:46]} 8. c3 {[%clk 0:02:52]}  Bg7 {[%clk 0:02:42]} 9. cxd4 {[%clk 0:02:49]}  exd4 {[%clk 0:02:43]} 10. O-O {[%clk 0:02:50]}  Ne7 {[%clk 0:02:43]} 11. f4 {[%clk 0:02:42]}  Nc6 {[%clk 0:02:44]} 12. a3 {[%clk 0:02:34]}  O-O {[%clk 0:02:45]} 13. b4 {[%clk 0:02:33]}  d5 {[%clk 0:02:45]} 14. e5 {[%clk 0:02:28]}  f6 {[%clk 0:02:44]} 15. exf6 {[%clk 0:02:20]}  Bxf6 {[%clk 0:02:30]} 16. Bb2 {[%clk 0:02:19]}  Qd6 {[%clk 0:02:19]} 17. Qe1 {[%clk 0:02:00]}  Bg4 {[%clk 0:02:13]} 18. Qg3 {[%clk 0:01:58]}  Bxe2 {[%clk 0:02:11]} 19. Bxe2 {[%clk 0:01:59]}  d3 {[%clk 0:02:12]} 20. Bxd3 {[%clk 0:01:31]}  Bxb2 {[%clk 0:02:11]} 21. Rab1 {[%clk 0:01:29]}  Bd4+ {[%clk 0:02:10]} 22. Kh1 {[%clk 0:01:28]}  Rae8 {[%clk 0:02:11]} 23. b5 {[%clk 0:01:24]}  axb5 {[%clk 0:02:08]} 24. Rxb5 {[%clk 0:01:25]}  b6 {[%clk 0:02:08]} 25. Rc1 {[%clk 0:01:20]}  Bc5 {[%clk 0:02:07]} 26. a4 {[%clk 0:01:17]}  Nd4 {[%clk 0:01:57]} 27. Rbb1 {[%clk 0:01:11]}  Ne2 {[%clk 0:01:44]} 28. Bxe2 {[%clk 0:01:10]}  Rxe2 {[%clk 0:01:45]} 29. Rf1 {[%clk 0:01:06]}  Rxd2 {[%clk 0:01:41]} 30. Qc3 {[%clk 0:01:03]}  Rf2 {[%clk 0:01:27]} 31. Rxf2 {[%clk 0:01:00]}  Bxf2 {[%clk 0:01:28]} 32. Rf1 {[%clk 0:00:58]}  Bc5 {[%clk 0:01:24]} 33. g3 {[%clk 0:00:55]}  d4 {[%clk 0:01:23]} 34. Qc4+ {[%clk 0:00:55]}  Kg7 {[%clk 0:01:23]} 35. h4 {[%clk 0:00:54]}  d3 {[%clk 0:01:21]} 36. Rd1 {[%clk 0:00:52]}  Rd8 {[%clk 0:01:20]} 37. Kh2 {[%clk 0:00:50]}  Qd4 {[%clk 0:01:14]} 38. Qe6 {[%clk 0:00:46]}  Qf2+ {[%clk 0:01:12]} 39. Kh3 {[%clk 0:00:46]}  Qe2 {[%clk 0:01:04]} 40. Qb3 {[%clk 0:00:44]}  d2 {[%clk 0:00:52]} 41. a5 {[%clk 0:00:44]}  bxa5 {[%clk 0:00:48]} 42. Qc3+ {[%clk 0:00:44]}  Kh6 {[%clk 0:00:37]} 43. Qxc5 {[%clk 0:00:42]}  Qxd1 {[%clk 0:00:36]} 44. Qg5+ {[%clk 0:00:41]}  Kg7 {[%clk 0:00:36]} 45. Qe7+ {[%clk 0:00:42]}  Kh6 {[%clk 0:00:36]} 46. Qg5+ {[%clk 0:00:41]}  Kg7 {[%clk 0:00:36]} 47. Qe7+ {[%clk 0:00:31]}  Kh6 {[%clk 0:00:33]} 48. Qg5+ {[%clk 0:00:28]} 1/2-1/2


[Site "https://www.chess.com"]

[Event "Titled Tuesday Blitz August 1 Late 2023"]
[White "cedchass2006"]
[Black "Feliz Dotel, Dewar Bienvenido"]
[BlackFideId "6402801"]
[WhiteElo "2432"]
[BlackElo "2148"]
[Result "1/2-1/2"]
[Round "2"]
[TimeControl "180+1"]
[Date "2023.08.01"]
[WhiteClock "0:00:13"]
[BlackClock "0:00:14"]
[Board "178"]

1. e4 {[%clk 0:03:00]}  e5 {[%clk 0:02:59]} 2. Nf3 {[%clk 0:03:01]}  Nc6 {[%clk 0:02:59]} 3. Bb5 {[%clk 0:03:01]}  Nf6 {[%clk 0:02:58]} 4. O-O {[%clk 0:02:59]}  Nxe4 {[%clk 0:02:57]} 5. Re1 {[%clk 0:02:59]}  Nd6 {[%clk 0:02:51]} 6. Nxe5 {[%clk 0:02:59]}  Be7 {[%clk 0:02:49]} 7. Bf1 {[%clk 0:02:58]}  Nxe5 {[%clk 0:02:48]} 8. Rxe5 {[%clk 0:02:59]}  O-O {[%clk 0:02:47]} 9. Nc3 {[%clk 0:02:59]}  Ne8 {[%clk 0:02:48]} 10. Nd5 {[%clk 0:02:58]}  Bc5 {[%clk 0:02:42]} 11. d4 {[%clk 0:02:45]}  Bd6 {[%clk 0:02:40]} 12. Re1 {[%clk 0:02:42]}  c6 {[%clk 0:02:26]} 13. Ne3 {[%clk 0:02:39]}  Bf4 {[%clk 0:02:23]} 14. g3 {[%clk 0:02:35]}  Bh6 {[%clk 0:02:22]} 15. Nf5 {[%clk 0:02:28]}  Bxc1 {[%clk 0:02:21]} 16. Ne7+ {[%clk 0:02:26]}  Kh8 {[%clk 0:02:17]} 17. Rxc1 {[%clk 0:02:23]}  d5 {[%clk 0:02:15]} 18. Nxc8 {[%clk 0:02:22]}  Rxc8 {[%clk 0:02:15]} 19. Bh3 {[%clk 0:02:22]}  Rc7 {[%clk 0:02:14]} 20. Qf3 {[%clk 0:02:18]}  Nd6 {[%clk 0:02:04]} 21. Bg2 {[%clk 0:02:08]}  Re7 {[%clk 0:02:03]} 22. c3 {[%clk 0:02:02]}  Rfe8 {[%clk 0:02:02]} 23. Kf1 {[%clk 0:01:54]}  Kg8 {[%clk 0:01:58]} 24. h4 {[%clk 0:01:50]}  h6 {[%clk 0:01:57]} 25. Qd3 {[%clk 0:01:49]}  Qd7 {[%clk 0:01:43]} 26. b3 {[%clk 0:01:38]}  g6 {[%clk 0:01:30]} 27. Qd2 {[%clk 0:01:35]}  Kg7 {[%clk 0:01:29]} 28. Qf4 {[%clk 0:01:29]}  Nb5 {[%clk 0:01:16]} 29. Qd2 {[%clk 0:01:25]}  Qd6 {[%clk 0:01:05]} 30. a4 {[%clk 0:01:22]}  Nc7 {[%clk 0:01:04]} 31. Bh3 {[%clk 0:01:01]}  Qf6 {[%clk 0:00:57]} 32. Qd3 {[%clk 0:00:46]}  Rxe1+ {[%clk 0:00:54]} 33. Rxe1 {[%clk 0:00:46]}  Rxe1+ {[%clk 0:00:53]} 34. Kxe1 {[%clk 0:00:47]}  Qe7+ {[%clk 0:00:53]} 35. Qe2 {[%clk 0:00:43]}  Kf8 {[%clk 0:00:52]} 36. Kd2 {[%clk 0:00:39]}  Qxe2+ {[%clk 0:00:51]} 37. Kxe2 {[%clk 0:00:32]}  Ke7 {[%clk 0:00:51]} 38. Ke3 {[%clk 0:00:31]}  b6 {[%clk 0:00:46]} 39. Kf4 {[%clk 0:00:30]}  Kd6 {[%clk 0:00:41]} 40. g4 {[%clk 0:00:26]}  Ne6+ {[%clk 0:00:39]} 41. Ke3 {[%clk 0:00:26]}  g5 {[%clk 0:00:39]} 42. hxg5 {[%clk 0:00:23]}  hxg5 {[%clk 0:00:40]} 43. Bf1 {[%clk 0:00:22]}  c5 {[%clk 0:00:36]} 44. Bd3 {[%clk 0:00:21]}  Nf4 {[%clk 0:00:35]} 45. Bf5 {[%clk 0:00:20]}  f6 {[%clk 0:00:29]} 46. b4 {[%clk 0:00:17]}  cxb4 {[%clk 0:00:25]} 47. cxb4 {[%clk 0:00:18]}  a5 {[%clk 0:00:22]} 48. bxa5 {[%clk 0:00:17]}  bxa5 {[%clk 0:00:23]} 49. Kf3 {[%clk 0:00:16]}  Ke7 {[%clk 0:00:17]} 50. Ke3 {[%clk 0:00:16]}  Kd6 {[%clk 0:00:17]} 51. Kd2 {[%clk 0:00:14]}  Nh3 {[%clk 0:00:15]} 52. Ke3 {[%clk 0:00:13]}  Nf4 {[%clk 0:00:14]} 1/2-1/2


[Site "https://www.chess.com"]

[Event "Titled Tuesday Blitz August 1 Late 2023"]
[White "Vila Dupla, Aurelio"]
[Black "Kirillov, Dmitry"]
[WhiteFideId "2203383"]
[BlackFideId "34180572"]
[WhiteElo "2148"]
[BlackElo "2431"]
[Result "0-1"]
[Round "2"]
[TimeControl "180+1"]
[Date "2023.08.01"]
[WhiteClock "0:01:08"]
[BlackClock "0:01:46"]
[Board "179"]

1. Nf3 {[%clk 0:02:58]}  Nf6 {[%clk 0:02:58]} 2. d4 {[%clk 0:02:55]}  e6 {[%clk 0:02:56]} 3. g3 {[%clk 0:02:53]}  c5 {[%clk 0:02:52]} 4. c4 {[%clk 0:02:52]}  cxd4 {[%clk 0:02:52]} 5. Nxd4 {[%clk 0:02:52]}  d5 {[%clk 0:02:53]} 6. Bg2 {[%clk 0:02:47]}  e5 {[%clk 0:02:51]} 7. Nb5 {[%clk 0:02:39]}  a6 {[%clk 0:02:51]} 8. N5c3 {[%clk 0:02:38]}  d4 {[%clk 0:02:51]} 9. Nd5 {[%clk 0:02:39]}  Nxd5 {[%clk 0:02:49]} 10. cxd5 {[%clk 0:02:38]}  h5 {[%clk 0:02:49]} 11. h4 {[%clk 0:02:36]}  Nd7 {[%clk 0:02:48]} 12. O-O {[%clk 0:02:34]}  Nf6 {[%clk 0:02:48]} 13. e3 {[%clk 0:02:32]}  Bc5 {[%clk 0:02:44]} 14. exd4 {[%clk 0:02:29]}  Bxd4 {[%clk 0:02:45]} 15. Nc3 {[%clk 0:02:29]}  Bg4 {[%clk 0:02:43]} 16. Qa4+ {[%clk 0:02:26]}  b5 {[%clk 0:02:42]} 17. Qb3 {[%clk 0:02:26]}  O-O {[%clk 0:02:39]} 18. Bg5 {[%clk 0:02:26]}  Qd6 {[%clk 0:02:36]} 19. Rfe1 {[%clk 0:02:12]}  Rac8 {[%clk 0:02:30]} 20. Ne2 {[%clk 0:01:59]}  Bxe2 {[%clk 0:02:25]} 21. Rxe2 {[%clk 0:01:59]}  Rc5 {[%clk 0:02:22]} 22. Bxf6 {[%clk 0:01:53]}  Qxf6 {[%clk 0:02:23]} 23. Rc2 {[%clk 0:01:50]}  Rfc8 {[%clk 0:02:19]} 24. Rac1 {[%clk 0:01:49]}  Bxf2+ {[%clk 0:02:18]} 25. Kh2 {[%clk 0:01:08]}  Bxg3+ {[%clk 0:01:46]} 0-1


[Site "https://www.chess.com"]

[Event "Titled Tuesday Blitz August 1 Late 2023"]
[White "Carrasco Miranda, Andres"]
[Black "Aung Thant Zin"]
[WhiteFideId "3405990"]
[BlackFideId "13000063"]
[WhiteElo "2431"]
[BlackElo "2147"]
[Result "1-0"]
[Round "2"]
[TimeControl "180+1"]
[Date "2023.08.01"]
[WhiteClock "0:00:38"]
[BlackClock "0:00:00"]
[Board "180"]

1. d4 {[%clk 0:02:48]}  Nf6 {[%clk 0:02:57]} 2. c4 {[%clk 0:02:48]}  e6 {[%clk 0:02:57]} 3. g3 {[%clk 0:02:49]}  c5 {[%clk 0:02:55]} 4. d5 {[%clk 0:02:47]}  exd5 {[%clk 0:02:56]} 5. cxd5 {[%clk 0:02:48]}  d6 {[%clk 0:02:56]} 6. Bg2 {[%clk 0:02:49]}  g6 {[%clk 0:02:54]} 7. Nc3 {[%clk 0:02:49]}  Bg7 {[%clk 0:02:54]} 8. Nf3 {[%clk 0:02:50]}  O-O {[%clk 0:02:52]} 9. O-O {[%clk 0:02:50]}  Re8 {[%clk 0:02:45]} 10. Bf4 {[%clk 0:02:50]}  a6 {[%clk 0:02:44]} 11. a4 {[%clk 0:02:50]}  b6 {[%clk 0:02:40]} 12. Nd2 {[%clk 0:02:43]}  Nh5 {[%clk 0:02:32]} 13. Be3 {[%clk 0:02:43]}  Nd7 {[%clk 0:02:26]} 14. Nc4 {[%clk 0:02:40]}  Ne5 {[%clk 0:02:24]} 15. Nxe5 {[%clk 0:02:38]}  Bxe5 {[%clk 0:02:24]} 16. Qd2 {[%clk 0:02:30]}  Bd7 {[%clk 0:02:03]} 17. Rab1 {[%clk 0:01:19]}  b5 {[%clk 0:01:46]} 18. axb5 {[%clk 0:01:20]}  axb5 {[%clk 0:01:46]} 19. b4 {[%clk 0:01:20]}  c4 {[%clk 0:01:40]} 20. Bd4 {[%clk 0:01:18]}  Qf6 {[%clk 0:01:39]} 21. Bxe5 {[%clk 0:01:17]}  Qxe5 {[%clk 0:01:38]} 22. Ra1 {[%clk 0:01:14]}  Nf6 {[%clk 0:01:32]} 23. e4 {[%clk 0:01:10]}  Qe7 {[%clk 0:01:27]} 24. h3 {[%clk 0:01:01]}  Reb8 {[%clk 0:01:19]} 25. Kh2 {[%clk 0:01:01]}  Be8 {[%clk 0:00:56]} 26. f4 {[%clk 0:01:00]}  Rxa1 {[%clk 0:00:51]} 27. Rxa1 {[%clk 0:01:00]}  Qc7 {[%clk 0:00:41]} 28. Qd4 {[%clk 0:00:59]}  Nd7 {[%clk 0:00:40]} 29. Ra7 {[%clk 0:00:59]}  Qd8 {[%clk 0:00:32]} 30. e5 {[%clk 0:00:57]}  dxe5 {[%clk 0:00:26]} 31. fxe5 {[%clk 0:00:58]}  Qb6 {[%clk 0:00:21]} 32. Qxb6 {[%clk 0:00:53]}  Nxb6 {[%clk 0:00:18]} 33. d6 {[%clk 0:00:51]}  Bd7 {[%clk 0:00:15]} 34. Nd5 {[%clk 0:00:42]}  Nxd5 {[%clk 0:00:12]} 35. Bxd5 {[%clk 0:00:43]}  Rd8 {[%clk 0:00:08]} 36. Rc7 {[%clk 0:00:40]}  Kf8 {[%clk 0:00:08]} 37. h4 {[%clk 0:00:39]}  Ke8 {[%clk 0:00:07]} 38. Kg2 {[%clk 0:00:38]}  h5 {[%clk 0:00:00]} 39. Kf3 {[%clk 0:00:38]} 1-0


[Site "https://www.chess.com"]

[Event "Titled Tuesday Blitz August 1 Late 2023"]
[White "Cheng, Xiao"]
[Black "ayme97"]
[WhiteFideId "2022915"]
[WhiteElo "2430"]
[BlackElo "2144"]
[Result "1-0"]
[Round "2"]
[TimeControl "180+1"]
[Date "2023.08.01"]
[WhiteClock "0:01:45"]
[BlackClock "0:00:36"]
[Board "181"]

1. c4 {[%clk 0:03:00]}  e5 {[%clk 0:02:59]} 2. Nc3 {[%clk 0:02:59]}  g6 {[%clk 0:02:53]} 3. g3 {[%clk 0:02:57]}  Bg7 {[%clk 0:02:52]} 4. Bg2 {[%clk 0:02:57]}  d6 {[%clk 0:02:52]} 5. e3 {[%clk 0:02:55]}  f5 {[%clk 0:02:51]} 6. Nge2 {[%clk 0:02:55]}  Nf6 {[%clk 0:02:50]} 7. d4 {[%clk 0:02:51]}  e4 {[%clk 0:02:49]} 8. b4 {[%clk 0:02:48]}  O-O {[%clk 0:02:47]} 9. Nf4 {[%clk 0:02:44]}  c6 {[%clk 0:02:42]} 10. Rb1 {[%clk 0:02:43]}  g5 {[%clk 0:02:37]} 11. Nh5 {[%clk 0:02:42]}  Ng4 {[%clk 0:02:28]} 12. h3 {[%clk 0:02:39]}  Nh6 {[%clk 0:02:28]} 13. h4 {[%clk 0:02:38]}  gxh4 {[%clk 0:02:19]} 14. Nxg7 {[%clk 0:02:34]}  Kxg7 {[%clk 0:02:14]} 15. Rxh4 {[%clk 0:02:34]}  d5 {[%clk 0:02:07]} 16. b5 {[%clk 0:02:30]}  dxc4 {[%clk 0:02:01]} 17. Bb2 {[%clk 0:02:24]}  Qg5 {[%clk 0:01:40]} 18. d5 {[%clk 0:02:20]}  Kg6 {[%clk 0:01:36]} 19. Qd4 {[%clk 0:02:09]}  Qf6 {[%clk 0:01:27]} 20. Qxc4 {[%clk 0:02:08]}  Qf7 {[%clk 0:01:01]} 21. Qe2 {[%clk 0:02:02]}  Ng4 {[%clk 0:00:57]} 22. Nxe4 {[%clk 0:01:56]}  fxe4 {[%clk 0:00:55]} 23. Rxg4+ {[%clk 0:01:48]}  Bxg4 {[%clk 0:00:48]} 24. Qxg4+ {[%clk 0:01:49]}  Kh6 {[%clk 0:00:48]} 25. Qh4+ {[%clk 0:01:46]}  Qh5 {[%clk 0:00:36]} 26. Bg7+ {[%clk 0:01:45]} 1-0


[Site "https://www.chess.com"]

[Event "Titled Tuesday Blitz August 1 Late 2023"]
[White "Ardito, Andrew"]
[Black "Ingunza Curro, Andres"]
[WhiteFideId "2033976"]
[BlackFideId "24526371"]
[WhiteElo "2110"]
[BlackElo "2429"]
[Result "0-1"]
[Round "2"]
[TimeControl "180+1"]
[Date "2023.08.01"]
[WhiteClock "0:00:10"]
[BlackClock "0:00:11"]
[Board "183"]

1. e4 {[%clk 0:03:00]}  d6 {[%clk 0:02:55]} 2. d4 {[%clk 0:03:00]}  Nf6 {[%clk 0:02:55]} 3. Nc3 {[%clk 0:03:01]}  c6 {[%clk 0:02:55]} 4. Nf3 {[%clk 0:02:59]}  Nbd7 {[%clk 0:02:49]} 5. e5 {[%clk 0:02:56]}  Ng8 {[%clk 0:02:37]} 6. Bc4 {[%clk 0:02:40]}  d5 {[%clk 0:02:34]} 7. Bd3 {[%clk 0:02:23]}  e6 {[%clk 0:02:32]} 8. O-O {[%clk 0:02:21]}  Be7 {[%clk 0:02:27]} 9. Ne2 {[%clk 0:02:07]}  c5 {[%clk 0:02:26]} 10. c3 {[%clk 0:02:05]}  h5 {[%clk 0:02:00]} 11. c4 {[%clk 0:01:18]}  dxc4 {[%clk 0:01:54]} 12. Bxc4 {[%clk 0:01:18]}  Nb6 {[%clk 0:01:53]} 13. Bb3 {[%clk 0:01:17]}  Nh6 {[%clk 0:01:41]} 14. Ng3 {[%clk 0:01:11]}  h4 {[%clk 0:01:32]} 15. Nh5 {[%clk 0:01:10]}  Nf5 {[%clk 0:01:30]} 16. dxc5 {[%clk 0:00:52]}  Qxd1 {[%clk 0:01:21]} 17. Rxd1 {[%clk 0:00:53]}  Bxc5 {[%clk 0:01:13]} 18. Nf4 {[%clk 0:00:51]}  Bd7 {[%clk 0:01:03]} 19. Ng5 {[%clk 0:00:48]}  Bc6 {[%clk 0:00:46]} 20. a4 {[%clk 0:00:45]}  Nd7 {[%clk 0:00:36]} 21. Nxf7 {[%clk 0:00:39]}  Kxf7 {[%clk 0:00:16]} 22. Bxe6+ {[%clk 0:00:39]}  Ke7 {[%clk 0:00:16]} 23. Bxf5 {[%clk 0:00:39]}  Nxe5 {[%clk 0:00:16]} 24. Re1 {[%clk 0:00:38]}  Kf6 {[%clk 0:00:17]} 25. Bc2 {[%clk 0:00:34]}  Rae8 {[%clk 0:00:16]} 26. Be3 {[%clk 0:00:32]}  Bxe3 {[%clk 0:00:15]} 27. Rxe3 {[%clk 0:00:33]}  Ng4 {[%clk 0:00:16]} 28. Rc3 {[%clk 0:00:28]}  Rd8 {[%clk 0:00:12]} 29. Ne2 {[%clk 0:00:23]}  Rd2 {[%clk 0:00:12]} 30. Rf3+ {[%clk 0:00:16]}  Bxf3 {[%clk 0:00:12]} 31. gxf3 {[%clk 0:00:16]}  Rxc2 {[%clk 0:00:12]} 32. Nf4 {[%clk 0:00:10]}  Ne5 {[%clk 0:00:11]} 0-1


[Site "https://www.chess.com"]

[Event "Titled Tuesday Blitz August 1 Late 2023"]
[White "Hartikainen, Jarmo"]
[Black "Necromon"]
[WhiteFideId "503134"]
[WhiteElo "2081"]
[BlackElo "2425"]
[Result "0-1"]
[Round "2"]
[TimeControl "180+1"]
[Date "2023.08.01"]
[WhiteClock "0:00:11"]
[BlackClock "0:00:58"]
[Board "186"]

1. e4 {[%clk 0:03:00]}  c5 {[%clk 0:02:57]} 2. c3 {[%clk 0:03:01]}  d5 {[%clk 0:02:55]} 3. exd5 {[%clk 0:03:01]}  Qxd5 {[%clk 0:02:56]} 4. d4 {[%clk 0:03:01]}  Nf6 {[%clk 0:02:54]} 5. Nf3 {[%clk 0:03:01]}  Bg4 {[%clk 0:02:54]} 6. Be2 {[%clk 0:03:00]}  e6 {[%clk 0:02:54]} 7. Na3 {[%clk 0:02:59]}  Nbd7 {[%clk 0:02:44]} 8. Be3 {[%clk 0:02:46]}  cxd4 {[%clk 0:02:43]} 9. Nb5 {[%clk 0:02:42]}  Rc8 {[%clk 0:02:37]} 10. Nbxd4 {[%clk 0:02:09]}  Bc5 {[%clk 0:02:27]} 11. O-O {[%clk 0:02:07]}  O-O {[%clk 0:02:26]} 12. Nc2 {[%clk 0:01:59]}  Rfd8 {[%clk 0:02:16]} 13. Qxd5 {[%clk 0:01:57]}  Nxd5 {[%clk 0:02:17]} 14. Bxc5 {[%clk 0:01:57]}  Nxc5 {[%clk 0:02:17]} 15. Nfd4 {[%clk 0:01:50]}  Bxe2 {[%clk 0:02:01]} 16. Nxe2 {[%clk 0:01:51]}  Na4 {[%clk 0:01:59]} 17. Rab1 {[%clk 0:01:44]}  Ndb6 {[%clk 0:01:59]} 18. Ncd4 {[%clk 0:01:18]}  e5 {[%clk 0:01:56]} 19. Nf5 {[%clk 0:01:18]}  Kf8 {[%clk 0:01:52]} 20. Rfe1 {[%clk 0:00:41]}  Rd2 {[%clk 0:01:45]} 21. Neg3 {[%clk 0:00:35]}  f6 {[%clk 0:01:38]} 22. Ne4 {[%clk 0:00:29]}  Rxb2 {[%clk 0:01:35]} 23. Rxb2 {[%clk 0:00:29]}  Nxb2 {[%clk 0:01:36]} 24. Nfd6 {[%clk 0:00:28]}  Rc7 {[%clk 0:01:25]} 25. Rb1 {[%clk 0:00:28]}  N2a4 {[%clk 0:01:17]} 26. Rb3 {[%clk 0:00:24]}  Nc4 {[%clk 0:01:11]} 27. Rxb7 {[%clk 0:00:20]}  Rc6 {[%clk 0:01:05]} 28. Rxa7 {[%clk 0:00:16]}  Nxd6 {[%clk 0:00:59]} 29. Nxd6 {[%clk 0:00:17]}  Rxd6 {[%clk 0:00:58]} 30. Rxa4 {[%clk 0:00:11]}  Rd1# {[%clk 0:00:58]} 0-1


[Site "https://www.chess.com"]